bitfinex/quotes_SOLUSD_20241029
["timestamp","ask_amount","ask_price","bid_price","bid_amount"]
[1730181971920,6.6423,181.32,181.3,7.49661107]
[1730181972100,21.8212,181.34,181.3,7.49661107]
[1730181973007,21.8212,181.34,181.29,7.49661107]
[1730181973197,21.8212,181.34,181.3,7.49661107]
[1730181973813,31.27349507,181.33,181.22,19.3134]
[1730181974004,7.49661107,181.31,181.22,19.3134]
[1730181974397,7.49661107,181.31,181.25,7.49661107]
[1730181974713,31.27349507,181.29,181.24,7.49661107]
[1730181975292,23.776884,181.27,181.23,7.49661107]
[1730181975492,23.776884,181.27,181.21,8.77107477]
[1730181975693,23.776884,181.27,181.22,7.49661107]
[1730181976194,23.776884,181.27,181.23,7.49661107]
[1730181977219,5.5169,181.26,181.23,7.49661107]
[1730181979018,5.5169,181.26,181.22,7.49661107]
[1730181979221,5.5169,181.26,181.23,7.49661107]
[1730181979819,5.5169,181.26,181.22,7.49661107]
[1730181982419,5.5169,181.26,181.23,7.49661107]
[1730181982919,5.5169,181.26,181.22,7.49661107]
[1730181983814,13.01351107,181.26,181.21,13.01501107]
[1730181984016,5.5169,181.26,181.22,7.49661107]
[1730181984620,5.5169,181.26,181.19,13.7976]
[1730181984621,7.49661107,181.23,181.19,13.7976]
[1730181984837,7.49661107,181.23,181.18,7.49661107]
[1730181985126,7.49661107,181.23,181.17,13.01601107]
[1730181985326,7.49661107,181.23,181.18,7.49661107]
[1730181985498,7.49661107,181.24,181.19,7.49661107]
[1730181985925,29.294784,181.23,181.19,7.49661107]
[1730181986215,36.79139507,181.23,181.18,7.49661107]
[1730181986423,31.27349507,181.23,181.18,7.49661107]
[1730181986805,29.294684,181.23,181.19,7.49661107]
[1730181987722,36.79129507,181.23,181.18,7.49661107]
[1730181987906,23.776884,181.23,181.19,7.49661107]
[1730181988227,5.5175,181.25,181.2,7.49661107]
[1730181988530,5.5175,181.25,181.21,7.49661107]
[1730181988931,7.49661107,181.24,181.19,7.49661107]
[1730181989528,7.49661107,181.24,181.18,5.5193]
[1730181989529,31.27349507,181.24,181.18,5.5193]
[1730181989724,7.49661107,181.23,181.18,13.01591107]
[1730181990729,7.49661107,181.22,181.17,21.29571107]
[1730181991030,7.49661107,181.22,181.17,26.81531107]
[1730181991809,13.01461107,181.23,181.17,26.81531107]
[1730181992425,13.01461107,181.23,181.18,7.49661107]
[1730181993711,23.776884,181.24,181.18,7.49661107]
[1730181993906,31.27349507,181.24,181.18,7.49661107]
[1730181995330,5.5178,181.23,181.18,7.49661107]
[1730181995633,7.49661107,181.22,181.16,7.49661107]
[1730181995812,7.49661107,181.21,181.16,7.49661107]
[1730181996015,7.49661107,181.22,181.17,7.49661107]
[1730181996209,7.49661107,181.21,181.16,7.49661107]
[1730181996918,7.49661107,181.22,181.17,7.49661107]
[1730181998147,31.27349507,181.21,181.15,13.8007]
[1730181998319,7.49661107,181.18,181.13,7.49661107]
[1730181998512,7.49661107,181.17,181.12,7.49661107]
[1730181998718,23.776884,181.17,181.12,7.49661107]
[1730181999037,31.27349507,181.17,181.11,13.8034]
[1730181999233,31.27349507,181.17,181.12,7.49661107]
[1730181999740,7.49661107,181.16,181.11,26.82151107]
[1730181999937,7.49661107,181.16,181.11,19.3249]
[1730182000232,5.52,181.16,181.11,21.30001107]
[1730182000440,5.52,181.16,181.12,7.49661107]
[1730182001235,7.49661107,181.17,181.12,7.49661107]
[1730182001432,5.5184,181.21,181.16,7.49661107]
[1730182001643,6.4291,181.25,181.19,7.49661107]
[1730182001825,19.44321107,181.25,181.19,7.49661107]
[1730182002331,19.44321107,181.25,181.21,7.49661107]
[1730182002332,6.4291,181.25,181.21,7.49661107]
[1730182002541,7.49661107,181.27,181.22,7.49661107]
[1730182003731,23.776884,181.27,181.22,7.49661107]
[1730182003928,29.293684,181.27,181.22,7.49661107]
[1730182005436,29.293684,181.27,181.23,7.49661107]
[1730182005741,29.293684,181.27,181.22,7.49661107]
[1730182009845,36.79029507,181.27,181.21,7.49661107]
[1730182010046,31.27349507,181.25,181.2,7.49661107]
[1730182010339,23.776884,181.25,181.2,7.49661107]
[1730182010637,23.776884,181.26,181.21,7.49661107]
[1730182010943,31.27349507,181.26,181.21,7.49661107]
[1730182011514,5.5172,181.25,181.21,7.49661107]
[1730182012142,5.5172,181.25,181.22,7.49661107]
[1730182014543,29.292884,181.29,181.24,7.49661107]
[1730182014728,29.292884,181.29,181.25,7.49661107]
[1730182016450,29.292884,181.29,181.24,7.49661107]
[1730182016753,36.78949507,181.29,181.24,7.49661107]
[1730182018726,7.49661107,181.28,181.23,7.49661107]
[1730182018929,29.292884,181.29,181.19,13.7976]
[1730182018930,23.776884,181.26,181.22,7.49661107]
[1730182020051,5.5172,181.25,181.22,7.49661107]
[1730182020254,5.5172,181.25,181.18,7.49661107]
[1730182020555,7.49661107,181.24,181.18,7.49661107]
[1730182020747,13.01381107,181.25,181.19,7.49661107]
[1730182020944,23.776884,181.24,181.2,7.49661107]
[1730182022052,29.294684,181.24,181.2,7.49661107]
[1730182022229,5.5172,181.25,181.21,7.49661107]
[1730182022434,31.27349507,181.27,181.22,7.49661107]
[1730182022840,23.776884,181.27,181.22,7.49661107]
[1730182023655,5.5169,181.26,181.22,7.49661107]
[1730182024956,23.776884,181.27,181.25,7.49661107]
[1730182025554,5.5166,181.28,181.25,7.49661107]
[1730182026050,23.29761107,181.32,181.26,7.49661107]
[1730182026254,5.5154,181.31,181.26,7.49661107]
[1730182026443,13.01201107,181.31,181.25,7.49661107]
[1730182026647,7.49661107,181.3,181.24,7.49661107]
[1730182026954,23.776884,181.29,181.24,7.49661107]
[1730182027334,23.776884,181.29,181.25,7.49661107]
[1730182027539,23.776884,181.28,181.24,7.49661107]
[1730182028534,36.78979507,181.28,181.19,13.7976]
[1730182028736,23.776884,181.26,181.21,7.49661107]
[1730182028952,23.776884,181.26,181.22,7.49661107]
[1730182029142,23.776884,181.27,181.22,7.49661107]
[1730182029451,23.776884,181.27,181.23,7.49661107]
[1730182030164,23.776884,181.28,181.23,7.49661107]
[1730182030340,29.293184,181.28,181.23,7.49661107]
[1730182031053,36.78979507,181.28,181.22,7.49661107]
[1730182032962,23.776884,181.26,181.21,7.49661107]
[1730182033356,23.776884,181.27,181.21,7.49661107]
[1730182033661,23.776884,181.21,181.16,7.49661107]
[1730182033866,31.27349507,181.21,181.16,7.49661107]
[1730182034067,36.79199507,181.21,181.16,7.49661107]
[1730182034239,29.295384,181.21,181.17,7.49661107]
[1730182034438,29.295384,181.21,181.19,7.49661107]
[1730182034744,29.295384,181.21,181.18,7.49661107]
[1730182034943,29.295384,181.21,181.17,7.49661107]
[1730182035263,7.49661107,181.2,181.14,19.3218]
[1730182035444,23.776884,181.19,181.15,7.49661107]
[1730182036358,23.776884,181.19,181.15,21.29731107]
[1730182036566,23.776884,181.19,181.16,7.49661107]
[1730182036743,23.776884,181.2,181.15,21.29731107]
[1730182037058,23.776884,181.18,181.14,7.49661107]
[1730182037447,23.776884,181.19,181.14,7.49661107]
[1730182038764,23.776884,181.19,181.14,13.01711107]
[1730182039147,23.776884,181.19,181.15,7.49661107]
[1730182039346,23.776884,181.21,181.17,7.49661107]
[1730182040051,29.295384,181.21,181.17,7.49661107]
[1730182040771,23.776884,181.22,181.18,7.49661107]
[1730182041063,31.27349507,181.22,181.17,13.01601107]
[1730182041244,36.79159507,181.22,181.17,7.49661107]
[1730182041850,36.79159507,181.22,181.16,7.49661107]
[1730182044084,23.776884,181.2,181.16,7.49661107]
[1730182044565,29.295584,181.2,181.16,7.49661107]
[1730182044750,7.49661107,181.19,181.14,21.29801107]
[1730182044956,23.776884,181.18,181.14,21.29801107]
[1730182045160,36.79219507,181.2,181.14,21.29801107]
[1730182045352,36.79219507,181.2,181.15,7.49661107]
[1730182045554,23.776884,181.2,181.17,7.49661107]
[1730182045973,23.776884,181.2,181.16,7.49661107]
[1730182048777,23.776884,181.2,181.17,7.49661107]
[1730182048973,0.96048311,181.27,181.19,7.49661107]
[1730182049163,7.49661107,181.27,181.22,7.49661107]
[1730182049672,7.49661107,181.27,181.21,7.49661107]
[1730182049965,7.49661107,181.25,181.17,15.386]
[1730182050174,7.49661107,181.25,181.2,7.49661107]
[1730182050376,23.776884,181.24,181.2,13.01531107]
[1730182050576,23.776884,181.25,181.2,13.01531107]
[1730182050963,23.776884,181.25,181.21,7.49661107]
[1730182052566,23.776884,181.25,181.2,7.49661107]
[1730182052875,31.27349507,181.25,181.2,7.49661107]
[1730182053079,23.776884,181.25,181.2,7.49661107]
[1730182053467,29.294184,181.25,181.21,7.49661107]
[1730182054567,23.776884,181.25,181.21,7.49661107]
[1730182055076,40.51677886,181.25,181.21,7.49661107]
[1730182055381,23.776884,181.25,181.21,7.49661107]
[1730182057685,23.776884,181.23,181.19,5.519]
[1730182057866,23.776884,181.23,181.18,21.29431107]
[1730182058865,23.776884,181.23,181.19,7.49661107]
[1730182059362,23.776884,181.23,181.21,7.49661107]
[1730182059897,23.776884,181.24,181.21,7.49661107]
[1730182060559,23.776884,181.24,181.2,7.49661107]
[1730182060761,36.79109507,181.24,181.15,27.6013]
[1730182060982,29.294484,181.24,181.21,7.49661107]
[1730182061684,23.776884,181.24,181.21,7.49661107]
[1730182061985,23.776884,181.25,181.21,7.49661107]
[1730182062593,23.776884,181.25,181.22,7.49661107]
[1730182063669,23.776884,181.26,181.22,13.01471107]
[1730182064183,23.776884,181.26,181.24,7.49661107]
[1730182064362,23.776884,181.28,181.24,7.49661107]
[1730182066573,36.78979507,181.28,181.23,7.49661107]
[1730182068668,29.293184,181.28,181.23,13.01431107]
[1730182069767,7.49661107,181.27,181.22,5.5179]
[1730182069972,31.27349507,181.26,181.21,13.7956]
[1730182070283,31.27349507,181.26,181.21,26.81061107]
[1730182070475,23.776884,181.26,181.22,7.49661107]
[1730182071364,23.776884,181.26,181.22,13.01461107]
[1730182073969,23.776884,181.26,181.23,7.49661107]
[1730182075587,23.776884,181.26,181.17,27.5983]
[1730182075791,23.776884,181.26,181.17,46.917]
[1730182075997,23.776884,181.26,181.22,7.49661107]
[1730182076871,31.27349507,181.26,181.21,13.01471107]
[1730182077689,23.776884,181.26,181.22,7.49661107]
[1730182078194,23.776884,181.26,181.22,13.01471107]
[1730182078371,31.27349507,181.26,181.21,7.49661107]
[1730182078566,36.79039507,181.26,181.21,13.01501107]
[1730182078893,36.79039507,181.26,181.2,13.7963]
[1730182079073,36.79039507,181.26,181.17,27.5983]
[1730182079074,23.776884,181.22,181.17,13.7991]
[1730182079279,23.776884,181.22,181.18,7.49661107]
[1730182079589,23.776884,181.23,181.18,7.49661107]
[1730182079780,23.776884,181.24,181.2,7.49661107]
[1730182080274,23.776884,181.25,181.21,7.49661107]
[1730182080471,5.5166,181.27,181.21,7.49661107]
[1730182080684,23.776884,181.24,181.19,7.49661107]
[1730182081392,36.79099507,181.24,181.19,13.01561107]
[1730182082894,31.27349507,181.2,181.13,19.323]
[1730182083194,31.27349507,181.17,181.13,13.8022]
[1730182083369,23.776884,181.15,181.11,13.01781107]
[1730182083772,23.776884,181.16,181.11,13.01781107]
[1730182083996,23.776884,181.17,181.13,7.49661107]
[1730182084185,5.5181,181.22,181.13,7.49661107]
[1730182084186,23.776884,181.18,181.13,7.49661107]
[1730182084571,23.776884,181.18,181.15,7.49661107]
[1730182085304,23.776884,181.22,181.17,7.49661107]
[1730182085476,23.776884,181.22,181.18,7.49661107]
[1730182086376,16.4949,181.23,181.19,7.49661107]
[1730182086869,29.50931107,181.23,181.18,7.49661107]
[1730182087189,29.50931107,181.23,181.18,13.01581107]
[1730182087885,23.776884,181.22,181.18,13.01581107]
[1730182089391,23.776884,181.22,181.12,46.9302]
[1730182089693,23.776884,181.2,181.12,46.9302]
[1730182089913,31.27349507,181.2,181.15,7.49661107]
[1730182090498,31.27349507,181.2,181.12,19.3242]
[1730182090499,23.776884,181.18,181.13,7.49661107]
[1730182090701,23.776884,181.17,181.13,7.49661107]
[1730182091593,23.776884,181.17,181.13,13.01741107]
[1730182092605,23.776884,181.18,181.13,13.01741107]
[1730182094398,31.27349507,181.18,181.13,13.01741107]
[1730182094701,36.79299507,181.18,181.12,26.82071107]
[1730182095084,23.776884,181.16,181.12,26.82071107]
[1730182097436,23.776884,181.16,181.08,27.6111]
[1730182097583,36.79349507,181.16,181.1,7.49661107]
[1730182097791,23.776884,181.14,181.1,7.49661107]
[1730182098613,23.776884,181.15,181.11,13.01811107]
[1730182099105,23.776884,181.15,181.11,5.5215]
[1730182100493,23.776884,181.15,181.11,7.49661107]
[1730182101791,23.776884,181.15,181.12,7.49661107]
[1730182107011,23.776884,181.16,181.12,7.49661107]
[1730182107212,23.776884,181.16,181.11,13.01791107]
[1730182107613,7.49661107,181.15,181.08,13.8053]
[1730182107916,23.776884,181.14,181.11,7.49661107]
[1730182108094,23.776884,181.16,181.12,7.49661107]
[1730182110096,23.776884,181.16,181.12,13.01771107]
[1730182110499,31.27349507,181.16,181.12,5.5211]
[1730182113119,31.27349507,181.16,181.12,7.49661107]
[1730182114517,31.27349507,181.16,181.12,13.01771107]
[1730182114695,31.27349507,181.16,181.12,5.5211]
[1730182124808,31.27349507,181.16,181.06,27.6151]
[1730182124809,23.776884,181.14,181.1,7.49661107]
[1730182125021,31.27349507,181.16,181.11,7.49661107]
[1730182125424,31.27349507,181.16,181.12,7.49661107]
[1730182125425,23.776884,181.16,181.12,7.49661107]
[1730182128344,23.776884,181.16,181.12,13.01761107]
[1730182130231,23.776884,181.14,181.06,27.6151]
[1730182130435,36.79369507,181.16,181.11,7.49661107]
[1730182131550,36.79369507,181.16,181.11,13.01791107]
[1730182131713,36.79369507,181.16,181.11,5.5213]
[1730182131918,36.79369507,181.16,181.1,21.30101107]
[1730182131919,7.49661107,181.14,181.1,13.8044]
[1730182132318,7.49661107,181.14,181.09,7.49661107]
[1730182132521,7.49661107,181.15,181.1,7.49661107]
[1730182132925,23.776884,181.14,181.1,7.49661107]
[1730182133725,23.776884,181.14,181.1,13.01821107]
[1730182140449,23.776884,181.14,181.07,13.8067]
[1730182140450,23.776884,181.14,181.11,7.49661107]
[1730182140922,7.49661107,181.16,181.11,7.49661107]
[1730182141126,23.776884,181.15,181.12,7.49661107]
[1730182141326,23.776884,181.16,181.12,7.49661107]
[1730182141737,36.79309507,181.17,181.12,7.49661107]
[1730182143441,29.296484,181.17,181.12,7.49661107]
[1730182143652,29.296484,181.17,181.12,13.01761107]
[1730182144448,29.296484,181.17,181.13,7.49661107]
[1730182145248,23.776884,181.17,181.13,13.01741107]
[1730182145545,23.776884,181.17,181.14,7.49661107]
[1730182145759,23.776884,181.17,181.13,13.01741107]
[1730182147922,8.72408732,181.18,181.15,7.49661107]
[1730182148248,15.8341,181.21,181.13,19.323]
[1730182148249,15.8341,181.21,181.17,7.49661107]
[1730182149341,13.01481107,181.22,181.11,43.0929]
[1730182149342,5.5182,181.22,181.18,7.49661107]
[1730182149550,31.27349507,181.23,181.18,7.49661107]
[1730182150050,23.776884,181.21,181.18,7.49661107]
[1730182150259,31.27349507,181.23,181.18,7.49661107]
[1730182150766,23.776884,181.21,181.17,7.49661107]
[1730182150938,23.776884,181.21,181.15,19.3209]
[1730182151134,23.776884,181.21,181.17,7.49661107]
[1730182151530,31.27349507,181.21,181.12,19.3242]
[1730182151735,23.776884,181.19,181.14,7.49661107]
[1730182152142,23.776884,181.19,181.15,7.49661107]
[1730182152336,23.776884,181.2,181.16,7.49661107]
[1730182152749,23.776884,181.22,181.17,7.49661107]
[1730182153349,6.2952,181.24,181.2,7.49661107]
[1730182153350,11.8127,181.24,181.2,7.49661107]
[1730182153848,11.8127,181.24,181.19,7.49661107]
[1730182154459,19.30931107,181.24,181.19,7.49661107]
[1730182154958,23.776884,181.23,181.19,7.49661107]
[1730182155541,29.294784,181.23,181.19,7.49661107]
[1730182157047,29.294784,181.23,181.18,7.49661107]
[1730182157562,36.79139507,181.23,181.17,7.49661107]
[1730182157949,7.49661107,181.22,181.17,7.49661107]
[1730182158356,23.776884,181.21,181.17,7.49661107]
[1730182158553,23.776884,181.21,181.12,41.409]
[1730182158554,31.27349507,181.21,181.14,5.5202]
[1730182158745,31.27349507,181.21,181.15,7.49661107]
[1730182158943,31.27349507,181.21,181.16,7.49661107]
[1730182159835,23.776884,181.19,181.16,7.49661107]
[1730182162065,23.776884,181.19,181.18,7.49661107]
[1730182162363,23.776884,181.22,181.18,7.49661107]
[1730182162572,23.776884,181.22,181.19,7.49661107]
[1730182163154,23.776884,181.22,181.18,7.49661107]
[1730182163761,29.294684,181.23,181.18,7.49661107]
[1730182164466,36.79129507,181.23,181.18,7.49661107]
[1730182166165,36.79129507,181.23,181.17,7.49661107]
[1730182166475,23.776884,181.21,181.17,7.49661107]
[1730182166855,23.776884,181.22,181.18,7.49661107]
[1730182167362,29.295184,181.22,181.18,7.49661107]
[1730182170356,36.79179507,181.22,181.15,19.3208]
[1730182170558,36.79179507,181.22,181.16,7.49661107]
[1730182170765,36.79179507,181.22,181.17,7.49661107]
[1730182171446,31.27349507,181.22,181.12,27.606]
[1730182171653,29.294984,181.23,181.19,7.49661107]
[1730182172053,29.294984,181.23,181.18,7.49661107]
[1730182173671,36.79159507,181.23,181.17,13.01611107]
[1730182174052,36.79159507,181.23,181.17,7.49661107]
[1730182174258,23.776884,181.21,181.16,21.29641107]
[1730182174670,7.49661107,181.21,181.16,21.29641107]
[1730182174848,23.776884,181.2,181.16,21.29641107]
[1730182175460,29.295584,181.2,181.16,21.29641107]
[1730182176667,29.295584,181.2,181.15,5.5202]
[1730182176668,29.295584,181.2,181.15,7.49661107]
[1730182176968,23.776884,181.18,181.14,7.49661107]
[1730182177180,23.776884,181.18,181.12,19.3242]
[1730182177343,23.776884,181.18,181.14,7.49661107]
[1730182177545,23.776884,181.19,181.15,7.49661107]
[1730182177970,29.296084,181.19,181.15,7.49661107]
[1730182178467,29.296084,181.19,181.14,7.49661107]
[1730182180561,29.296084,181.19,181.15,7.49661107]
[1730182180760,29.295884,181.19,181.15,7.49661107]
[1730182184976,29.295884,181.19,181.16,7.49661107]
[1730182187354,29.295884,181.19,181.15,7.49661107]
[1730182188269,23.776884,181.19,181.16,7.49661107]
[1730182188475,5.5184,181.21,181.13,13.8022]
[1730182188664,15.4013,181.26,181.2,7.49661107]
[1730182188863,4.1347314,181.25,181.22,7.49661107]
[1730182189174,15.4013,181.26,181.21,7.49661107]
[1730182189559,20.9183,181.26,181.21,7.49661107]
[1730182189759,28.41491107,181.26,181.21,7.49661107]
[1730182189963,23.776884,181.24,181.2,13.01511107]
[1730182190459,23.776884,181.24,181.19,21.29401107]
[1730182192074,23.776884,181.24,181.2,7.49661107]
[1730182193262,5.5176,181.24,181.2,7.49661107]
[1730182193462,23.776884,181.23,181.2,7.49661107]
[1730182194273,23.776884,181.23,181.21,7.49661107]
[1730182194479,23.776884,181.23,181.14,39.3219]
[1730182194666,23.776884,181.23,181.19,7.49661107]
[1730182196359,29.294384,181.24,181.19,7.49661107]
[1730182196560,23.776884,181.22,181.16,19.3189]
[1730182196755,31.27349507,181.22,181.17,7.49661107]
[1730182197064,23.776884,181.2,181.14,5.5202]
[1730182197382,23.776884,181.21,181.16,7.49661107]
[1730182197572,23.776884,181.21,181.17,7.49661107]
[1730182197771,23.776884,181.22,181.17,7.49661107]
[1730182198579,23.776884,181.2,181.17,7.49661107]
[1730182199159,23.776884,181.2,181.18,7.49661107]
[1730182200564,23.776884,181.2,181.16,7.49661107]
[1730182201965,23.776884,181.2,181.17,7.49661107]
[1730182202168,5.5172,181.25,181.19,7.49661107]
[1730182202507,13.01381107,181.25,181.19,7.49661107]
[1730182203084,13.01381107,181.25,181.15,19.3207]
[1730182203271,13.01381107,181.25,181.2,7.49661107]
[1730182203467,23.776884,181.24,181.2,7.49661107]
[1730182204775,23.776884,181.24,181.19,13.01551107]
[1730182204974,31.27349507,181.24,181.19,13.01551107]
[1730182205179,36.79119507,181.24,181.19,5.5189]
[1730182205361,7.49661107,181.22,181.18,13.7984]
[1730182206485,23.776884,181.22,181.18,13.7984]
[1730182206693,31.27349507,181.22,181.16,7.49661107]
[1730182207885,23.776884,181.2,181.15,21.29721107]
[1730182208181,7.49661107,181.19,181.15,13.8006]
[1730182208386,23.776884,181.2,181.15,21.29721107]
[1730182208762,31.27349507,181.2,181.15,13.8006]
[1730182209492,23.776884,181.2,181.15,21.29721107]
[1730182210172,29.295784,181.2,181.15,21.29721107]
[1730182211080,36.79239507,181.2,181.15,13.8006]
[1730182211785,23.776884,181.18,181.13,7.49661107]
[1730182212378,23.776884,181.17,181.11,29.289]
[1730182212588,31.27349507,181.17,181.09,5.522]
[1730182212887,7.49661107,181.15,181.09,13.01861107]
[1730182213075,23.776884,181.14,181.09,13.01861107]
[1730182213479,23.776884,181.14,181.1,7.49661107]
[1730182213675,23.776884,181.14,181.11,7.49661107]
[1730182213887,23.776884,181.15,181.11,7.49661107]
[1730182214779,31.27349507,181.15,181.09,21.30181107]
[1730182214981,36.79389507,181.15,181.09,21.30181107]
[1730182215403,36.79389507,181.15,181.1,7.49661107]
[1730182216306,36.79389507,181.15,181.09,13.8052]
[1730182216507,23.776884,181.13,181.09,26.82391107]
[1730182216684,7.49661107,181.14,181.09,26.82391107]
[1730182216880,23.776884,181.13,181.09,13.8052]
[1730182218700,31.27349507,181.13,181.09,13.8052]
[1730182220605,36.79449507,181.13,181.09,13.8052]
[1730182221881,29.297884,181.13,181.09,21.30181107]
[1730182222086,23.776884,181.13,181.09,21.30181107]
[1730182223213,5.5193,181.18,181.11,7.49661107]
[1730182223508,7.49661107,181.17,181.11,7.49661107]
[1730182224508,23.776884,181.16,181.12,7.49661107]
[1730182225020,23.776884,181.16,181.11,7.49661107]
[1730182226110,29.296784,181.16,181.11,7.49661107]
[1730182227783,29.296784,181.16,181.11,13.01791107]
[1730182228414,29.296784,181.16,181.12,7.49661107]
[1730182228610,5.5196,181.18,181.13,7.49661107]
[1730182228906,29.13001107,181.19,181.13,7.49661107]
[1730182229217,5.5191,181.19,181.14,7.49661107]
[1730182229714,7.49661107,181.19,181.14,7.49661107]
[1730182229897,23.776884,181.18,181.14,7.49661107]
[1730182230096,23.776884,181.18,181.14,13.01711107]
[1730182231291,31.27349507,181.18,181.09,20.0]
[1730182231493,31.27349507,181.18,181.12,7.49661107]
[1730182231809,31.27349507,181.18,181.13,7.49661107]
[1730182232594,31.27349507,181.18,181.12,7.49661107]
[1730182233410,36.79299507,181.18,181.09,19.3273]
[1730182233617,23.776884,181.16,181.12,7.49661107]
[1730182233805,29.296384,181.18,181.12,7.49661107]
[1730182233806,36.79299507,181.18,181.12,7.49661107]
[1730182234520,36.79299507,181.18,181.12,13.01761107]
[1730182234695,7.49661107,181.17,181.12,13.01761107]
[1730182234896,23.776884,181.16,181.12,13.01761107]
[1730182235518,31.27349507,181.17,181.12,7.49661107]
[1730182235722,36.79309507,181.17,181.12,7.49661107]
[1730182236021,29.296484,181.17,181.13,7.49661107]
[1730182237315,23.776884,181.17,181.14,7.49661107]
[1730182237523,23.776884,181.18,181.14,7.49661107]
[1730182238100,31.27349507,181.18,181.13,7.49661107]
[1730182238814,31.27349507,181.18,181.13,13.01731107]
[1730182239018,36.79289507,181.18,181.13,13.01731107]
[1730182239221,23.776884,181.18,181.14,7.49661107]
[1730182239392,31.27349507,181.18,181.13,26.81951107]
[1730182239991,36.79279507,181.18,181.13,26.81951107]
[1730182240414,23.776884,181.18,181.13,26.81951107]
[1730182244113,23.776884,181.18,181.14,7.49661107]
[1730182244423,23.776884,181.18,181.13,7.49661107]
[1730182245133,23.776884,181.18,181.13,13.01721107]
[1730182246204,26.93939457,181.23,181.17,7.49661107]
[1730182246407,21.1893,181.23,181.19,7.49661107]
[1730182246928,28.68591107,181.23,181.17,7.49661107]
[1730182247107,7.49661107,181.21,181.16,7.49661107]
[1730182247310,23.776884,181.2,181.16,26.81621107]
[1730182247921,7.49661107,181.2,181.16,13.7999]
[1730182248121,31.27349507,181.19,181.16,13.7999]
[1730182248318,23.776884,181.19,181.16,13.7999]
[1730182250930,23.776884,181.2,181.16,21.29651107]
[1730182251123,23.776884,181.21,181.17,7.49661107]
[1730182251518,23.776884,181.22,181.18,7.49661107]
[1730182251817,23.776884,181.22,181.16,13.7999]
[1730182251818,5.5169,181.26,181.21,7.49661107]
[1730182252021,5.5169,181.26,181.2,7.49661107]
[1730182252210,38.04928502,181.25,181.2,7.49661107]
[1730182252411,13.01391107,181.25,181.2,7.49661107]
[1730182252608,13.01391107,181.25,181.19,13.01551107]
[1730182252829,7.49661107,181.23,181.19,5.5189]
[1730182253029,23.776884,181.23,181.19,5.5189]
[1730182254430,23.776884,181.23,181.18,7.49661107]
[1730182254626,23.776884,181.23,181.18,13.01591107]
[1730182255827,31.27349507,181.23,181.18,5.5193]
[1730182256006,36.79139507,181.23,181.18,5.5193]
[1730182258512,36.79139507,181.23,181.18,7.49661107]
[1730182259831,23.776884,181.21,181.17,7.49661107]
[1730182261136,23.776884,181.21,181.18,7.49661107]
[1730182261334,23.776884,181.22,181.2,7.49661107]
[1730182262211,11.26559366,181.27,181.21,7.49661107]
[1730182262435,7.49661107,181.26,181.2,7.49661107]
[1730182263037,7.49661107,181.24,181.19,13.797]
[1730182263217,7.49661107,181.23,181.19,13.797]
[1730182263618,23.776884,181.22,181.19,13.797]
[1730182264032,23.776884,181.22,181.19,19.316]
[1730182264948,23.776884,181.22,181.19,13.797]
[1730182266222,23.776884,181.23,181.19,26.81261107]
[1730182266420,23.776884,181.24,181.2,7.49661107]
[1730182268425,29.294484,181.24,181.2,7.49661107]
[1730182270743,29.294484,181.24,181.19,7.49661107]
[1730182272136,29.294484,181.24,181.19,13.01551107]
[1730182272352,23.776884,181.25,181.21,7.49661107]
[1730182272939,13.01311107,181.28,181.23,7.49661107]
[1730182274340,23.776884,181.27,181.23,7.49661107]
[1730182274547,23.776884,181.27,181.22,13.01451107]
[1730182274947,23.776884,181.25,181.2,7.49661107]
[1730182275442,23.776884,181.25,181.21,7.49661107]
[1730182275851,23.776884,181.26,181.21,7.49661107]
[1730182276027,23.776884,181.26,181.22,5.5181]
[1730182277120,21.52416714,181.3,181.22,5.5181]
[1730182277121,5.75296714,181.3,181.23,7.49661107]
[1730182277333,5.5147,181.34,181.26,7.49661107]
[1730182277557,7.49661107,181.32,181.26,7.49661107]
[1730182277849,7.49661107,181.37,181.31,7.49661107]
[1730182278037,4.12355661,181.36,181.32,5.5151]
[1730182278237,7.49661107,181.37,181.32,5.5151]
[1730182278551,7.49661107,181.36,181.32,5.5151]
[1730182278924,23.776884,181.35,181.32,5.5151]
[1730182279747,23.776884,181.35,181.31,21.28501107]
[1730182279947,23.776884,181.35,181.31,19.3038]
[1730182280543,7.49661107,181.34,181.31,13.7884]
[1730182280748,31.27349507,181.33,181.31,13.7884]
[1730182280950,23.776884,181.33,181.31,13.7884]
[1730182281951,23.776884,181.33,181.26,26.80491107]
[1730182281952,23.776884,181.31,181.26,26.80491107]